fUSD/lending_fUSD_20240215
["ID","MTS","AMOUNT","RATE_DAILY","PERIOD"]
[314123295,1708007445781,-200.0,0.00037661,10]
[314123297,1708007445790,-200.0,0.00037674,3]
[314123299,1708007445800,-800.0,0.00037674,5]
[314123301,1708007445809,-200.0,0.00037674,10]
[314123303,1708007445818,-500.0,0.00037674,10]
[314123305,1708007445828,-898.02,0.00037678,2]
[314123307,1708007445838,-150.01,0.00037679,2]
[314123309,1708007445847,-3316.12830692,0.00037679,2]
[314123311,1708007445857,-1000.0,0.00037698,2]
[314123313,1708007445866,-63.11813402,0.00037699,2]
[314123316,1708007445885,-39490.09020016,0.00037699,2]
[314123318,1708007445895,-1000.0,0.00037712,2]
[314123320,1708007445904,-7928.44977876,0.00037713,11]
[314123322,1708007445915,-151.0,0.00037752,2]
[314123324,1708007445924,-1000.0,0.000378,2]
[314123326,1708007445933,-8185.32273892,0.000378,2]
[314123331,1708007445969,-525.7,0.000378,2]
[314123337,1708007446018,-339.05105135,0.000378,2]
[314123339,1708007446030,-12634.66800973,0.000378,2]
[314123341,1708007446040,-500.0,0.000378,2]
[314123343,1708007446050,-1000.0,0.000378,5]
[314123346,1708007446059,-1000.0,0.000378,5]
[314123348,1708007446068,-1000.0,0.000378,5]
[314123350,1708007446078,-1000.0,0.000378,5]
[314123352,1708007446087,-1000.0,0.000378,5]
[314123354,1708007446096,-154.58,0.000378,3]
[314123356,1708007446105,-278.73,0.000378,3]
[314123358,1708007446115,-278.73,0.000378,3]
[314123360,1708007446125,-278.73,0.000378,3]
[314123362,1708007446134,-278.73,0.000378,3]
[314123364,1708007446143,-278.73,0.000378,3]
[314123366,1708007446153,-278.73,0.000378,3]
[314123368,1708007446163,-278.73,0.000378,3]
[314123370,1708007446172,-278.73,0.000378,3]
[314123372,1708007446182,-278.73,0.000378,3]
[314123374,1708007446191,-278.73,0.000378,3]
[314123376,1708007446201,-278.73,0.000378,3]
[314123378,1708007446210,-278.73,0.000378,3]
[314123380,1708007446219,-278.73,0.000378,3]
[314123382,1708007446228,-278.73,0.000378,3]
[314123384,1708007446238,-278.73,0.000378,3]
[314123386,1708007446248,-278.73,0.000378,3]
[314123388,1708007446257,-278.73,0.000378,3]
[314123390,1708007446266,-278.73,0.000378,3]
[314123392,1708007446276,-278.73,0.000378,3]
[314123393,1708007446286,-278.73,0.000378,3]
[314123394,1708007446296,-5000.0,0.000378,3]
[314123395,1708007446305,-250.3468634,0.000378,7]
[314123396,1708007446314,-275.08510208,0.000378,2]
[314123397,1708007446324,-153.5200888,0.000378,2]
[314123398,1708007446333,-152.08,0.0003781,2]
[314123399,1708007446343,-896.03,0.00037812,2]
[314123401,1708007446352,-861.12581288,0.00037873,2]
[314123414,1708007446469,-19138.86418712,0.00037873,2]
[314123416,1708007446479,-1098.90172724,0.00037878,2]
[314123418,1708007446489,-1792.43096529,0.00037878,2]
[314123420,1708007446498,-837.91,0.00037891,2]
[314123422,1708007446507,-336285.8197754,0.000379,5]
[314123427,1708007446538,-915.88208088,0.0003787,2]
[314123429,1708007446548,-10748.74585944,0.000379,5]
[314123458,1708007446850,-10920.20509675,0.000379,5]
[314123462,1708007446878,-39491.57797266,0.000379,5]
[314123966,1708008292601,-205.0,0.00032187,2]
[314123967,1708008292623,-152.0,0.00032921,2]
[314123968,1708008292642,-168.0,0.00033,2]
[314123969,1708008292662,-848.01,0.00033061,2]
[314123970,1708008292683,-163.02191033,0.00033133,2]
[314123971,1708008292702,-2455.1895,0.00033505,2]
[314123972,1708008292722,-152.0,0.00033605,2]
[314123973,1708008292742,-155.22754735,0.00034087,2]
[314123974,1708008292766,-20260.55096218,0.00034122,10]
[314123975,1708008292785,-452.16559788,0.00034123,2]
[314123976,1708008292807,-21767.80797197,0.00034133,10]
[314123977,1708008292827,-999.99,0.00034133,2]
[314123978,1708008292847,-499.99,0.00034133,2]
[314123979,1708008292871,-690.39,0.00034133,2]
[314123980,1708008292894,-3146.4086431,0.0003414,10]
[314123981,1708008292915,-205.0,0.00034174,6]
[314123982,1708008292934,-152.0,0.0003429,2]
[314123983,1708008292953,-13259.56,0.0003429,2]
[314123984,1708008292972,-6793.34,0.0003429,2]
[314123985,1708008292993,-2705.0,0.00034456,2]
[314123986,1708008293012,-157.53,0.00034496,2]
[314123987,1708008293031,-1978.81,0.00034521,2]
[314123988,1708008293049,-341.58,0.00034529,2]
[314123989,1708008293069,-150.0,0.00034581,2]
[314123990,1708008293090,-480.0,0.00034622,2]
[314123991,1708008293112,-250.0,0.0003466,2]
[314123992,1708008293135,-3241.38,0.00034788,2]
[314123993,1708008293155,-153.52,0.00034824,2]
[314123994,1708008293175,-250.0,0.0003485,111]
[314123995,1708008293197,-23900.0,0.00034871,2]
[314123996,1708008293217,-152.0,0.00034975,2]
[314123997,1708008293236,-412.44,0.00034975,2]
[314123998,1708008293363,-413.49,0.00034991,2]
[314123999,1708008304965,-155.22754735,0.00035015,2]
[314124000,1708008304986,-2014.7,0.00035015,2]
[314124001,1708008305007,-499.99,0.00035048,2]
[314124002,1708008305036,-551.07,0.00035048,2]
[314124003,1708008305058,-250.0,0.0003505,2]
[314124004,1708008305082,-2000.0,0.00035077,2]
[314124005,1708008305109,-158.84,0.00035087,2]
[314124006,1708008305152,-284.74,0.00035087,10]
[314124007,1708008305175,-622.377,0.00035087,2]
[314124008,1708008305201,-655.72,0.00035087,2]
[314124009,1708008305224,-174.43,0.00035123,2]
[314124010,1708008305247,-848.01,0.00035325,2]
[314124011,1708008305271,-158.84,0.00035356,2]
[314124012,1708008305296,-158.84,0.00035626,2]
[314124013,1708008305320,-152.0,0.0003566,7]
[314124014,1708008305344,-153.52,0.00035732,2]
[314124015,1708008305366,-2210.6416,0.00035766,2]
[314124016,1708008305394,-1978.81,0.00035798,2]
[314124017,1708008305419,-16065.84263996,0.00035866,4]
[314124018,1708008305448,-7026.93562544,0.00035866,4]
[314124019,1708008305472,-843.191589,0.00035866,4]
[314124020,1708008305495,-150.16248229,0.00035866,3]
[314124021,1708008305518,-150.16248228,0.00035866,4]
[314124022,1708008305541,-1000.0,0.00035866,10]
[314124023,1708008305563,-158.84,0.00035896,2]
[314124024,1708008305586,-155.22754735,0.00035944,2]
[314124026,1708008590457,350.0,0.00025,3]
[314124027,1708008591587,400.0,0.00027,3]
[314124028,1708008592773,450.0,0.00029,3]
[314124045,1708008634855,-500.0,0.00031,3]
[314124046,1708008634865,-550.0,0.00033,3]
[314124047,1708008634875,-763.2,0.00033892,2]
[314124048,1708008634886,-1291.94137396,0.0003414,10]
[314124049,1708008634895,-600.0,0.00035,3]
[314124050,1708008634905,-566.0,0.0003516,2]
[314124051,1708008634914,-205.0,0.0003516,2]
[314124052,1708008634926,-616.0,0.00035385,2]
[314124053,1708008634937,-250.0,0.00035594,111]
[314124054,1708008634950,-2021.25,0.00035658,2]
[314124055,1708008634959,-250.0,0.00035658,2]
[314124056,1708008634969,-13987.7100689,0.00035693,2]
[314124057,1708008634981,-1312.90177721,0.00035693,2]
[314124058,1708008634993,-691.59727248,0.00035693,2]
[314124059,1708008635006,-1068.08974122,0.00035693,2]
[314124060,1708008635023,-300.0,0.00035693,2]
[314124061,1708008635076,-423.85500001,0.00035693,2]
[314124062,1708008635088,-294.88375833,0.00035693,2]
[314124063,1708008635100,-1138.31996974,0.00035693,2]
[314124064,1708008635141,-4682.64241211,0.00035693,2]
[314124065,1708008635151,-546.43,0.00035893,2]
[314124066,1708008635160,-250.0,0.00035941,2]
[314124067,1708008635171,-2000.0,0.00035966,2]
[314124068,1708008635184,-205.18,0.00035967,2]
[314124074,1708008635338,-185.76,0.00035992,2]
[314124075,1708008635348,-499.99,0.00035992,2]
[314124076,1708008635359,-155.22754735,0.00036066,2]
[314124077,1708008635368,-166.21,0.0003609,2]
[314124078,1708008635378,-763.2,0.00036155,2]
[314124079,1708008635388,-158.84,0.00036166,2]
[314124080,1708008635398,-287.0,0.0003623,2]
[314124081,1708008635408,-26242.0,0.00036264,2]
[314124082,1708008635418,-158.84,0.00036436,2]
[314124083,1708008635430,-2117.4828,0.000366,2]
[314124084,1708008635441,-1000.0,0.000366,2]
[314124085,1708008635451,-3330.70438489,0.000366,2]
[314124086,1708008635460,-853.61271258,0.00036606,8]
[314124087,1708008635471,-153.52,0.00036639,2]
[314124088,1708008635481,-330.9429,0.000367,2]
[314124089,1708008635491,-53687.2254,0.000367,2]
[314124090,1708008635501,-4169.1101,0.000367,2]
[314124091,1708008635511,-225716.1117,0.000367,2]
[314124092,1708008635520,-876.7555,0.000367,2]
[314124093,1708008635531,-20184.31250465,0.000367,2]
[314124094,1708008635541,-158.84,0.00036706,2]
[314124095,1708008635551,-161135.107,0.000368,2]
[314124096,1708008635561,-8719.7765,0.000368,2]
[314124097,1708008635571,-100000.0,0.000368,2]
[314124098,1708008635581,-50118.0,0.000368,3]
[314124099,1708008635591,-153.0,0.00036845,7]
[314124100,1708008635600,-150.0,0.000369,2]
[314124101,1708008635610,-150.0,0.000369,2]
[314124102,1708008635621,-150.0,0.000369,2]
[314124103,1708008635630,-3105.27212587,0.000369,2]
[314124104,1708008635640,-618.8102208,0.000369,2]
[314124105,1708008635650,-158.84,0.00036976,2]
[314124106,1708008635660,-356.58296802,0.00036996,2]
[314124107,1708008635669,-1000.0,0.00036999,2]
[314124108,1708008635681,-562200.18249692,0.00037,5]
[314124109,1708008635694,-25717.20904102,0.00037,5]
[314124110,1708008635772,-262.84,0.00037,5]
[314124111,1708008635784,-54165.15438668,0.00037,5]
[314124112,1708008635797,-110077.30707777,0.00037,5]
[314124113,1708008635807,-133069.66867513,0.00037,7]
[314124114,1708008635819,-103144.42737144,0.00037,7]
[314124115,1708008635832,-72429.12198099,0.00037,7]
[314124116,1708008635842,-1000.0,0.00037,2]
[314124117,1708008635852,-2700.0,0.00037,38]
[314124118,1708008635861,-650.0,0.00037,3]
[314124119,1708008635870,-1000.0,0.00037,2]
[314124120,1708008635880,-1978.81,0.00037075,2]
[314124121,1708008635889,-853.61271253,0.00037077,8]
[314124122,1708008635899,-3330.70438481,0.00037152,2]
[314124123,1708008635908,-205.0,0.0003723,6]
[314124124,1708008635918,-20184.31250456,0.00037244,2]
[314124125,1708008635927,-158.84,0.00037246,2]
[314124126,1708008635936,-151.96,0.0003726,2]
[314124127,1708008635946,-150.0,0.0003726,2]
[314124128,1708008635955,-150.0,0.0003726,2]
[314124129,1708008635965,-150.0,0.0003726,2]
[314124130,1708008635974,-1000.0,0.000374,7]
[314124131,1708008635984,-150.0,0.00037448,2]
[314124132,1708008635993,-227.64625164,0.00037448,2]
[314124133,1708008636012,-2753.14412,0.0003751,2]
[314124134,1708008636025,-158.84,0.00037516,2]
[314124135,1708008636035,-153.0,0.0003753,7]
[314124136,1708008636045,-546.43,0.00037537,2]
[314124137,1708008636055,-853.61271253,0.00037547,8]
[314124138,1708008636066,-200.0,0.00037547,3]
[314124139,1708008636076,-230.70930459,0.00037605,2]
[314124140,1708008636087,-200.0,0.0003761,10]
[314124141,1708008636098,-800.0,0.00037632,5]
[314124142,1708008636108,-200.0,0.00037632,10]
[314124143,1708008636119,-500.0,0.00037632,10]
[314124144,1708008636129,-155.22754735,0.0003764,2]
[314124145,1708008636139,-2213.86088141,0.0003764,2]
[314124146,1708008636150,-1561.547728,0.0003764,2]
[314124147,1708008636160,-200.0,0.00037653,10]
[314124148,1708008636169,-200.0,0.00037674,3]
[314124149,1708008636182,-800.0,0.00037674,5]
[314124150,1708008636192,-200.0,0.00037674,10]
[314124151,1708008636204,-500.0,0.00037674,10]
[314124152,1708008636214,-183.39006806,0.00037685,2]
[314124153,1708008636224,-714.45565331,0.00037685,2]
[314124154,1708008636235,-17965.3507382,0.00037698,10]
[314124155,1708008636245,-153.46372753,0.00037699,2]
[314124156,1708008636255,-59164.85652452,0.000377,3]
[314124157,1708008636265,-3330.70438481,0.00037705,2]
[314124158,1708008636276,-356.58296802,0.00037708,2]
[314124159,1708008636286,-867.15,0.0003771,2]
[314124160,1708008636297,-628.04571902,0.0003771,15]
[314124161,1708008636307,-500.0,0.0003771,15]
[314124162,1708008636317,-1059.85,0.0003771,2]
[314124163,1708008636327,-673.24520556,0.00037711,3]
[314124164,1708008636337,-187.90778278,0.00037711,2]
[314124165,1708008636347,-176175.6916657,0.00037711,15]
[314124166,1708008636402,-4944.50459879,0.00037711,15]
[314124167,1708008636438,-15196.28965907,0.00037711,15]
[314124168,1708008636450,-453.51,0.00037711,15]
[314124169,1708008636467,-9655.51691357,0.00037711,15]
[314124170,1708008637003,184.90560239,0.0003,2]
[314124178,1708008637793,-894.14883145,0.00037711,15]
[314124179,1708008637851,-399.13216622,0.00037711,15]
[314124180,1708008637863,-2475.50688256,0.00037711,15]
[314124181,1708008637874,-8489.79513644,0.00037711,15]
[314124182,1708008637887,-312.16445397,0.00037711,15]
[314124183,1708008637915,-1467.75973281,0.00037711,15]
[314124184,1708008637926,-42306.28637895,0.00037711,15]
[314124185,1708008637938,-133034.29358047,0.00037711,15]
[314124186,1708008637947,-150.0,0.00037741,2]
[314124187,1708008637956,-158.84,0.00037785,2]
[314124188,1708008637966,-20184.31250456,0.00037789,2]
[314124189,1708008637975,-1000.0,0.000378,2]
[314124190,1708008637985,-1226.7785,0.000378,2]
[314124191,1708008637994,-5000.0,0.000378,3]
[314124192,1708008638003,-5908.1274611,0.000378,11]
[314124193,1708008638013,-153.99,0.000378,3]
[314124194,1708008638022,-153.99,0.000378,3]
[314124195,1708008638031,-532.32,0.000378,3]
[314124196,1708008638040,-532.32,0.000378,3]
[314124197,1708008638050,-532.32,0.000378,3]
[314124198,1708008638060,-532.32,0.000378,3]
[314124199,1708008638069,-532.32,0.000378,3]
[314124200,1708008638078,-532.32,0.000378,3]
[314124201,1708008638088,-532.32,0.000378,3]
[314124202,1708008638097,-532.32,0.000378,3]
[314124203,1708008638107,-532.32,0.000378,3]
[314124204,1708008638116,-532.32,0.000378,3]
[314124205,1708008638125,-532.32,0.000378,3]
[314124206,1708008638134,-532.32,0.000378,3]
[314124207,1708008638144,-532.32,0.000378,3]
[314124208,1708008638153,-532.32,0.000378,3]
[314124210,1708008638163,-532.32,0.000378,3]
[314124212,1708008638172,-532.32,0.000378,3]
[314124213,1708008638183,-532.32,0.000378,3]
[314124215,1708008638192,-532.32,0.000378,3]
[314124217,1708008638203,-532.32,0.000378,3]
[314124219,1708008638212,-532.32,0.000378,3]
[314124221,1708008638220,-285.50337513,0.0003789,2]
[314124235,1708008638347,-3316.12830692,0.0003789,2]
[314124237,1708008638356,-7701.37078645,0.00037894,2]
[314124239,1708008638366,-73995.26548545,0.00037894,2]
[314124242,1708008638385,-1657.71189,0.00037894,2]
[314124244,1708008638396,-321.10306042,0.00037894,2]
[314124246,1708008638408,-6405.24511154,0.00037894,2]
[314124248,1708008638419,-314.10428727,0.00037894,2]
[314124251,1708008638436,-24857.74656862,0.00037894,2]
[314124253,1708008638445,-3994.5371711,0.00037894,2]
[314124255,1708008638454,-356.58296802,0.00037897,2]
[314124257,1708008638463,-1000.0,0.00037899,2]
[314124259,1708008638472,-150.0,0.00037899,2]
[314124261,1708008638481,-150.0,0.00037899,7]
[314124263,1708008638490,-479.408385,0.000379,2]
[314124265,1708008638499,-151.083422,0.000379,3]
[314124266,1708008638508,-2000.0,0.000379,2]
[314124269,1708008638518,-310.60182551,0.000379,2]
[314124270,1708008638527,-3000.0,0.000379,33]
[314124272,1708008638537,-116708.57316727,0.000379,2]
[314124274,1708008638549,-76238.31939298,0.000379,2]
[314124276,1708008638560,-15862.52591069,0.000379,2]
[314124279,1708008638584,-1906.94243544,0.000379,2]
[314124280,1708008638595,-12199.48,0.000379,2]
[314124281,1708008638607,-1303.51149993,0.000379,2]
[314124282,1708008638618,-1279.52,0.000379,2]
[314124283,1708008638630,-5455.74793376,0.000379,2]
[314124284,1708008638642,-992.8693487,0.000379,2]
[314124347,1708008640384,-455.20087013,0.00037611,3]
[314124348,1708008640395,-2407.67153421,0.00037611,3]
[314124349,1708008640407,-2137.12759566,0.00037611,3]
[314124350,1708008640417,-1919.65691775,0.000379,2]
[314124351,1708008640458,-1496.42778088,0.000379,2]
[314124352,1708008640470,-1062.73661376,0.000379,2]
[314124353,1708008641293,-510.98056953,0.00037894,2]
[314124354,1708008641310,-734.258525,0.00037894,2]
[314124355,1708008641362,-1422.85797104,0.00037894,2]
[314124356,1708008641376,-298.33106,0.00037894,2]
[314124357,1708008641388,-1195.000022,0.00037894,2]
[314124358,1708008641405,-338.64724169,0.00037894,2]
[314124359,1708008641438,-1092.29284058,0.00037894,2]
[314124360,1708008641451,-1525.64759389,0.00037894,2]
[314124361,1708008641463,-1499.95530377,0.00037894,2]
[314124362,1708008641476,-78289.364444,0.00037894,2]
[314124363,1708008641486,-26987.44654008,0.000379,2]
[314124364,1708008642222,-310.077,0.000379,2]
[314124398,1708008642862,-396211.49819376,0.000379,2]
[314124399,1708008642872,-3000.0,0.0003791,33]
[314124400,1708008642881,-230.70930458,0.00037911,2]
[314124401,1708008642890,-3000.0,0.0003792,33]
[314124402,1708008642899,-263.25063541,0.0003793,10]
[314124403,1708008642908,-3000.0,0.0003793,33]
[314124404,1708008642917,-150.0,0.00037932,2]
[314124405,1708008643035,-3000.0,0.0003794,33]
[314124406,1708008643044,-3000.0,0.0003795,33]
[314124407,1708008643054,-172.42,0.00037952,2]
[314124408,1708008643063,-3000.0,0.0003796,33]
[314124409,1708008643072,-8007.728959,0.0003797,2]
[314124410,1708008643081,-3000.0,0.0003797,33]
[314124411,1708008643090,-3000.0,0.0003798,33]
[314124412,1708008643099,-200.0,0.00037987,2]
[314124413,1708008643109,-3000.0,0.0003799,33]
[314124414,1708008643118,-240.84506107,0.00037996,2]
[314124415,1708008643127,-256.61947179,0.00037999,30]
[314124416,1708008643136,-100000.0,0.00038,8]
[314124417,1708008643145,-44770.40263219,0.00038,2]
[314124418,1708008643154,-150.45,0.00038,2]
[314124419,1708008643164,-12451.7,0.00038,2]
[314124420,1708008643173,-818.19876337,0.00038,20]
[314124421,1708008643183,-3000.0,0.00038,33]
[314124422,1708008643194,-3000.0,0.0003801,34]
[314124423,1708008643206,-853.61271253,0.00038018,8]
[314124424,1708008643215,-3000.0,0.0003802,34]
[314124425,1708008643224,-3000.0,0.0003803,34]
[314124426,1708008643233,-3000.0,0.0003804,34]
[314124427,1708008643242,-3000.0,0.0003805,34]
[314124428,1708008643252,-158.84,0.00038055,2]
[314124429,1708008643261,-356.58296802,0.00038057,2]
[314124430,1708008643271,-5294.251323,0.0003806,34]
[314124431,1708008643281,-152.08,0.00038076,2]
[314124432,1708008643291,-150.0,0.00038086,2]
[314124433,1708008643300,-5908.12746108,0.00038119,11]
[314124434,1708008643310,-164.9,0.00038124,2]
[314124435,1708008643319,-1382.79360113,0.00038214,2]
[314124436,1708008643328,-153.0,0.00038215,7]
[314124437,1708008643337,-230.70930458,0.00038218,2]
[314124438,1708008643347,-1497.12,0.00038219,2]
[314124439,1708008643356,-153.46372747,0.00038238,2]
[314124440,1708008643366,-3330.70438481,0.00038257,2]
[314124441,1708008643375,-1169.26065296,0.00038279,2]
[314124442,1708008643385,-158.84,0.00038325,2]
[314124443,1708008643394,-20184.31250456,0.00038333,2]
[314124444,1708008643403,-1978.81,0.00038352,2]
[314124445,1708008643413,-5000.0,0.00038356,2]
[314124446,1708008643422,-1000.0,0.00038356,14]
[314124447,1708008643431,-152.94624,0.00038356,7]
[314124448,1708008643442,-151.0,0.00038356,7]
[314124449,1708008643451,-151.0,0.00038356,7]
[314124450,1708008643460,-152.073411,0.00038356,5]
[314124451,1708008643469,-151.0,0.00038356,7]
[314124452,1708008643478,-151.0,0.00038356,7]
[314124453,1708008643488,-151.0,0.00038356,7]
[314124454,1708008643497,-151.0,0.00038356,7]
[314124455,1708008643507,-151.0,0.00038356,7]
[314124456,1708008643516,-151.0,0.00038356,7]
[314124457,1708008643525,-161.848028,0.00038356,7]
[314124458,1708008643534,-159.65,0.00038356,2]
[314124459,1708008643543,-161.848028,0.00038356,7]
[314124460,1708008643553,-151.0,0.00038356,7]
[314124461,1708008643562,-151.0,0.00038356,7]
[314124462,1708008643571,-151.0,0.00038356,7]
[314124463,1708008643581,-153.218011,0.00038356,7]
[314124464,1708008643590,-151.0,0.00038356,7]
[314124465,1708008643600,-151.0,0.00038356,7]
[314124466,1708008643609,-158.083973,0.00038356,7]
[314124467,1708008643619,-158.380825,0.00038356,7]
[314124468,1708008643628,-178.905771,0.00038356,7]
[314124469,1708008643637,-295.0,0.00038356,7]
[314124470,1708008643646,-151.0,0.00038356,7]
[314124471,1708008643656,-159.121245,0.00038356,7]
[314124472,1708008643665,-204.945274,0.00038356,7]
[314124473,1708008643674,-151.0,0.00038356,7]
[314124474,1708008643683,-151.0,0.00038356,7]
[314124475,1708008643694,-151.0,0.00038356,7]
[314124476,1708008643704,-151.0,0.00038356,7]
[314124477,1708008643713,-1011.703502,0.00038356,7]
[314124478,1708008643722,-1011.703502,0.00038356,7]
[314124479,1708008643731,-227.5546,0.00038356,7]
[314124480,1708008643740,-227.5546,0.00038356,7]
[314124481,1708008643749,-151.0,0.00038356,7]
[314124482,1708008643758,-173.262181,0.00038356,7]
[314124483,1708008643768,-151.0,0.00038356,7]
[314124484,1708008643777,-151.0,0.00038356,7]
[314124485,1708008643786,-151.0,0.00038356,7]
[314124486,1708008643795,-151.0,0.00038356,7]
[314124487,1708008643804,-243.391961,0.00038356,7]
[314124488,1708008643813,-243.391961,0.00038356,7]
[314124489,1708008643822,-191.019497,0.00038356,7]
[314124490,1708008643831,-220.257295,0.00038356,7]
[314124491,1708008643840,-151.0,0.00038356,7]
[314124492,1708008643849,-151.0,0.00038356,7]
[314124493,1708008643859,-151.0,0.00038356,7]
[314124494,1708008643868,-161.089706,0.00038356,7]
[314124495,1708008643877,-151.0,0.00038356,7]
[314124496,1708008643886,-151.0,0.00038356,7]
[314124497,1708008643895,-172.724711,0.00038356,7]
[314124498,1708008643905,-151.0,0.00038356,7]
[314124499,1708008643914,-151.0,0.00038356,7]
[314124500,1708008643923,-3866.65,0.00038356,15]
[314124501,1708008643932,-152.748963,0.00038356,7]
[314124502,1708008643943,-151.0,0.00038356,7]
[314124503,1708008643952,-151.0,0.00038356,7]
[314124504,1708008643961,-151.0,0.00038356,7]
[314124505,1708008643970,-151.0,0.00038356,7]
[314124506,1708008643979,-151.0,0.00038356,7]
[314124507,1708008643988,-171.083297,0.00038356,7]
[314124508,1708008643997,-151.0,0.00038356,7]
[314124509,1708008644006,-151.0,0.00038356,7]
[314124510,1708008644015,-173.453312,0.00038356,7]
[314124511,1708008644024,-154.0,0.00038359,7]
[314124512,1708008644033,-375.0,0.000384,7]
[314124513,1708008644042,-346.0,0.000384,2]
[314124514,1708008644052,-1000.0,0.000384,2]
[314124515,1708008644061,-763.2,0.00038419,2]
[314124516,1708008644070,-5908.12746108,0.00038439,11]
[314124517,1708008644080,-3105.2721257,0.00038479,2]
[314124518,1708008644089,-853.61271253,0.00038488,8]
[314124519,1708008644098,-157.29,0.00038491,2]
[314124520,1708008644107,-230.70930458,0.00038524,2]
[314124521,1708008644116,-158.84,0.00038595,2]
[314124522,1708008644125,-5000.0,0.0003863,2]
[314124523,1708008644134,-1000.0,0.0003863,14]
[314124524,1708008644143,-287.0,0.0003864,2]
[314124525,1708008644152,-5908.12746108,0.00038758,12]
[314124526,1708008644161,-10776.47,0.0003877,7]
[314124527,1708008644170,-10776.47,0.0003877,7]
[314124528,1708008644179,-10776.47,0.0003877,7]
[314124529,1708008644190,-10776.47,0.0003877,7]
[314124530,1708008644202,-153.46372747,0.00038776,2]
[314124531,1708008644212,-9230.13204864,0.000388,5]
[314124532,1708008644221,-151.0,0.000388,7]
[314124533,1708008644230,-157.283054,0.000388,7]
[314124534,1708008644239,-157.507856,0.000388,7]
[314124535,1708008644248,-158.603269,0.000388,7]
[314124536,1708008644257,-153.99,0.000388,3]
[314124537,1708008644267,-153.99,0.000388,3]
[314124538,1708008644277,-153.99,0.000388,3]
[314124539,1708008644286,-153.99,0.000388,3]
[314124540,1708008644295,-151.0,0.000388,7]
[314124541,1708008644305,-158.306838,0.000388,7]
[314124542,1708008644315,-152.12682,0.000388,7]
[314124543,1708008644324,-157.789721,0.000388,7]
[314124544,1708008644333,-151.0,0.000388,7]
[314124545,1708008644342,-151.0,0.000388,7]
[314124546,1708008644351,-160.144882,0.000388,7]
[314124547,1708008644360,-161.848028,0.000388,7]
[314124548,1708008644370,-161.848028,0.000388,7]
[314124549,1708008644380,-151.0,0.000388,7]
[314124550,1708008644389,-151.0,0.000388,7]
[314124551,1708008644398,-153.334641,0.000388,7]
[314124552,1708008644407,-164.865869,0.000388,7]
[314124553,1708008644417,-269.358227,0.000388,7]
[314124554,1708008644426,-532.32,0.000388,3]
[314124555,1708008644437,-532.32,0.000388,3]
[314124556,1708008644446,-532.32,0.000388,3]
[314124557,1708008644455,-532.32,0.000388,3]
[314124558,1708008644464,-532.32,0.000388,3]
[314124559,1708008644473,-532.32,0.000388,3]
[314124560,1708008644482,-532.32,0.000388,3]
[314124561,1708008644491,-532.32,0.000388,3]
[314124562,1708008644590,-532.32,0.000388,3]
[314124563,1708008644600,-532.32,0.000388,3]
[314124564,1708008644609,-532.32,0.000388,3]
[314124565,1708008644618,-532.32,0.000388,3]
[314124566,1708008644628,-532.32,0.000388,3]
[314124567,1708008644637,-532.32,0.000388,3]
[314124568,1708008644647,-532.32,0.000388,3]
[314124569,1708008644656,-532.32,0.000388,3]